bitfinex-derivatives/quotes_SOLF0:USTF0_20240912
["timestamp","ask_amount","ask_price","bid_price","bid_amount"]
[1726177068320,11.2347,135.77,135.74,3.3152]
[1726177068528,14.88790857,135.77,135.74,3.3152]
[1726177069528,14.88790857,135.77,135.75,3.315]
[1726177070828,14.88790857,135.77,135.74,3.3151]
[1726177071730,11.2348,135.76,135.74,3.3151]
[1726177072133,11.2348,135.76,135.73,4.6079]
[1726177073031,15.00036398,135.76,135.73,4.6079]
[1726177074921,11.68556398,135.76,135.74,3.3151]
[1726177075732,11.68556398,135.76,135.73,1.2925]
[1726177075733,7.92,135.75,135.73,3.3155]
[1726177076935,11.235,135.75,135.73,3.3155]
[1726177078029,11.235,135.75,135.72,3.3156]
[1726177078230,11.2353,135.74,135.69,1.3928]
[1726177078429,11.2353,135.74,135.71,3.3158]
[1726177079334,11.2353,135.74,135.72,3.3158]
[1726177081135,3.71518054,135.75,135.69,9.3128]
[1726177081136,7.92,135.73,135.69,9.3128]
[1726177081336,7.92,135.73,135.69,1.3928]
[1726177081935,7.92,135.73,135.71,3.3158]
[1726177085746,11.2355,135.73,135.71,3.3158]
[1726177086245,11.2355,135.73,135.69,1.3928]
[1726177086246,7.92,135.73,135.69,1.3928]
[1726177087545,7.92,135.73,135.71,3.3159]
[1726177094246,7.92,135.73,135.72,3.3158]
[1726177095750,7.92,135.73,135.71,3.3159]
[1726177097348,11.2355,135.73,135.71,3.3159]
[1726177097743,7.92,135.72,135.7,3.3162]
[1726177098148,7.92,135.72,135.69,1.3928]
[1726177098347,7.92,135.72,135.71,3.316]
[1726177100256,3.3154,135.74,135.71,3.316]
[1726177102047,3.71518054,135.75,135.69,1.3928]
[1726177102048,3.3156,135.73,135.7,3.3161]
[1726177102556,3.3156,135.73,135.69,1.3928]
[1726177102949,3.3154,135.74,135.69,1.3928]
[1726177103347,3.3156,135.73,135.7,3.3161]
[1726177104161,6.94425777,135.73,135.7,3.3161]
[1726177104361,3.62865777,135.73,135.69,1.3928]
[1726177104662,7.92,135.71,135.68,1.3902]
[1726177104862,7.92,135.71,135.69,3.3165]
[1726177105553,7.92,135.7,135.69,3.3165]
[1726177105861,7.92,135.7,135.68,3.3166]
[1726177107052,7.92,135.7,135.69,3.3165]
[1726177107253,7.0661764,135.72,135.69,3.3165]
[1726177107557,7.92,135.7,135.69,3.3165]
[1726177109165,7.92,135.7,135.68,3.3166]
[1726177109664,7.92,135.7,135.66,7.92]
[1726177110762,7.92,135.7,135.65,7.92]
[1726177110964,7.92,135.7,135.69,3.3165]
[1726177113374,7.92,135.7,135.64,16.6798]
[1726177113557,7.92,135.68,135.64,16.6798]
[1726177114270,7.92,135.68,135.64,8.7598]
[1726177114468,3.7502764,135.72,135.64,8.7598]
[1726177114661,7.92,135.69,135.64,16.6798]
[1726177115470,7.92,135.69,135.67,3.3167]
[1726177116464,7.92,135.68,135.67,3.3167]
[1726177117259,7.92,135.68,135.56,6.639]
[1726177117464,7.92,135.63,135.58,7.92]
[1726177117973,7.92,135.63,135.62,3.3182]
[1726177119274,7.92,135.63,135.6,3.3185]
[1726177119471,7.92,135.61,135.6,3.3185]
[1726177120069,7.92,135.61,135.59,3.3189]
[1726177121976,7.92,135.61,135.56,4.0059]
[1726177122278,7.92,135.6,135.56,11.9259]
[1726177122777,7.92,135.6,135.58,3.3191]
[1726177124686,7.92,135.59,135.57,3.3194]
[1726177132184,7.92,135.59,135.58,3.3192]
[1726177140805,7.92,135.59,135.56,4.0059]
[1726177141095,7.92,135.59,135.57,3.3193]
[1726177148206,7.92,135.58,135.56,3.3195]
[1726177154913,7.92,135.58,135.55,3.3199]
[1726177154914,7.92,135.57,135.55,3.3199]
[1726177155110,7.92,135.56,135.55,3.3199]
[1726177158715,3.3191,135.59,135.55,3.3199]
[1726177158915,7.92,135.57,135.55,3.3199]
[1726177166123,3.71487572,135.64,135.53,1.3256]
[1726177166321,7.92,135.58,135.53,1.3256]
[1726177167016,3.60067881,135.64,135.53,9.2456]
[1726177167017,3.3184,135.62,135.53,9.2456]
[1726177167218,3.60067881,135.64,135.56,7.92]
[1726177167417,7.92,135.61,135.55,7.92]
[1726177167618,7.92,135.61,135.59,3.3188]
[1726177168229,7.92,135.6,135.59,3.3188]
[1726177171220,3.69659853,135.61,135.59,3.3188]
[1726177171421,3.3181,135.63,135.59,3.3188]
[1726177172021,3.3182,135.62,135.59,3.3188]
[1726177178332,7.92,135.6,135.59,3.3188]
[1726177178638,7.92,135.6,135.58,3.3192]
[1726177178836,7.92,135.59,135.58,3.3192]
[1726177179329,7.92,135.59,135.57,10.6923]
[1726177179522,7.92,135.58,135.57,3.3193]
[1726177182523,7.92,135.58,135.56,3.3195]
[1726177182727,7.92,135.57,135.56,3.3195]
[1726177194763,7.92,135.57,135.53,1.3256]
[1726177194969,7.92,135.55,135.54,10.6931]
[1726177198053,7.92,135.55,135.53,1.3256]
[1726177198266,7.92,135.55,135.52,1.3936]
[1726177198267,7.92,135.54,135.52,1.3936]
[1726177198463,7.92,135.53,135.51,1.4002]
[1726177199556,7.92,135.53,135.52,3.3205]
[1726177200266,3.73155798,135.63,135.51,8.7732]
[1726177200457,6.6325,135.71,135.53,7.92]
[1726177200667,7.92,135.59,135.54,1.3481]
[1726177200859,7.92,135.56,135.55,1.3566]
[1726177201771,7.92,135.56,135.55,4.6764]
[1726177202160,7.92,135.57,135.55,1.3566]
[1726177202361,7.92,135.56,135.55,1.3566]
[1726177203769,7.92,135.56,135.55,4.6765]
[1726177207071,7.92,135.57,135.56,3.3197]
[1726177210165,6.96059307,135.6,135.57,3.3194]
[1726177210166,7.92,135.59,135.57,3.3194]
[1726177214277,7.92,135.58,135.57,3.3194]
[1726177218885,7.92,135.58,135.55,1.3566]
[1726177219084,3.319,135.59,135.56,3.3197]
[1726177219382,7.92,135.57,135.55,1.3566]
[1726177220787,7.92,135.57,135.55,4.6764]
[1726177222481,7.92,135.57,135.55,1.3566]
[1726177222891,11.2394,135.57,135.54,3.32]
[1726177223082,7.92,135.55,135.54,3.32]
[1726177224794,7.92,135.55,135.52,3.3206]
[1726177224996,7.92,135.53,135.52,3.3206]
[1726177226802,7.92,135.53,135.51,6.0083]
[1726177227093,7.92,135.53,135.51,2.6876]
[1726177227489,7.92,135.53,135.52,3.3206]
[1726177233498,7.92,135.53,135.51,2.6876]
[1726177233499,7.92,135.53,135.51,6.0084]
[1726177237103,3.3198,135.56,135.52,3.3206]
[1726177237401,7.92,135.53,135.52,3.3206]
[1726177242504,7.08299963,135.55,135.52,3.3206]
[1726177242705,7.92,135.53,135.52,3.3206]
[1726177247108,3.66762375,135.56,135.53,3.3203]
[1726177247290,7.92,135.54,135.53,3.3203]
[1726177256007,7.92,135.54,135.51,2.6876]
[1726177256921,7.92,135.54,135.52,3.3204]
[1726177257211,7.92,135.54,135.51,2.6876]
[1726177257401,7.92,135.52,135.51,2.6876]
[1726177257715,7.92,135.52,135.51,6.0085]
[1726177258717,3.72481735,135.55,135.53,3.3203]
[1726177258912,7.92,135.54,135.53,3.3203]
[1726177259422,3.63441812,135.55,135.52,3.3205]
[1726177259617,7.92,135.53,135.52,3.3205]
[1726177262314,3.78082084,135.55,135.51,2.6876]
[1726177262514,7.92,135.52,135.51,2.6876]
[1726177263822,3.77380907,135.55,135.51,2.6876]
[1726177264017,7.92,135.52,135.51,2.6876]
[1726177264419,3.77380907,135.55,135.52,3.3205]
[1726177264603,7.92,135.53,135.52,3.3205]
[1726177265724,7.92,135.53,135.51,3.3207]
[1726177265913,7.92,135.52,135.44,11.3741]
[1726177266111,7.92,135.45,135.44,2.6832]
[1726177266917,3.73634081,135.52,135.44,10.0562]
[1726177267220,155.50434642,135.62,135.45,7.92]
[1726177267408,7.92,135.51,135.45,7.92]
[1726177267608,3.61414648,135.51,135.45,7.92]
[1726177267821,7.92,135.51,135.44,2.6832]
[1726177268020,11.66630832,135.51,135.44,2.6832]
[1726177268221,3.74630832,135.51,135.44,2.6832]
[1726177268417,254.68,135.55,135.44,10.6032]
[1726177269021,7.92,135.5,135.48,3.3213]
[1726177269328,3.6252215,135.55,135.45,7.373]
[1726177269509,3.3191,135.58,135.49,3.3209]
[1726177269713,7.92,135.53,135.49,3.3209]
[1726177269920,3.63512216,135.58,135.49,7.92]
[1726177270122,7.92,135.54,135.51,3.3205]
[1726177270528,155.50434642,135.62,135.53,3.32]
[1726177270529,3.3182,135.61,135.53,3.32]
[1726177270726,7.92,135.57,135.52,7.373]
[1726177270923,7.92,135.57,135.53,7.92]
[1726177271431,155.50434642,135.62,135.55,3.3196]
[1726177271723,7.92,135.58,135.53,7.92]
[1726177271920,155.50434642,135.62,135.53,7.92]
[1726177272222,7.92,135.58,135.54,3.3198]
[1726177274529,7.92,135.57,135.54,3.3198]
[1726177275328,7.92,135.57,135.52,18.6131]
[1726177275625,155.50434642,135.62,135.52,7.373]
[1726177275626,7.92,135.56,135.52,7.373]
[1726177275928,7.92,135.56,135.54,3.3198]
[1726177278124,7.92,135.59,135.56,3.3192]
[1726177278329,7.92,135.59,135.54,7.92]
[1726177278529,7.92,135.59,135.56,3.3191]
[1726177280039,7.92,135.59,135.57,3.319]
[1726177281826,3.3176,135.63,135.54,7.92]
[1726177282031,7.92,135.6,135.58,3.3189]
[1726177282227,7.92,135.62,135.58,3.3189]
[1726177282431,22.12,135.73,135.59,3.3185]
[1726177282432,3.3173,135.65,135.59,3.3185]
[1726177282629,7.92,135.62,135.59,3.3185]
[1726177282832,11.54191073,135.62,135.59,3.3185]
[1726177283032,3.3173,135.65,135.59,3.3185]
[1726177283237,7.92,135.61,135.58,4.6207]
[1726177283423,7.92,135.61,135.58,8.6748]
[1726177283624,7.92,135.62,135.58,16.5948]
[1726177284140,7.92,135.62,135.6,3.3182]
[1726177284326,7.92,135.63,135.59,7.92]
[1726177285734,7.92,135.63,135.61,3.318]
[1726177291544,7.92,135.64,135.61,3.318]
[1726177293444,7.92,135.64,135.62,3.3178]
[1726177296344,3.65105127,135.66,135.61,7.92]
[1726177296540,7.92,135.67,135.61,7.92]
[1726177296742,3.67699214,135.66,135.61,7.92]
[1726177297348,3.67699214,135.66,135.63,3.3175]
[1726177302948,3.67699214,135.66,135.63,7.92]
[1726177303145,7.92,135.68,135.63,7.92]
[1726177303346,3.3167,135.67,135.63,11.2375]
[1726177303547,6.98567898,135.67,135.63,11.2375]
[1726177305447,11.58897898,135.67,135.64,3.3174]
[1726177305846,3.66897898,135.67,135.64,3.3174]
[1726177306247,3.66897898,135.67,135.65,3.3171]
[1726177306641,7.92,135.68,135.65,3.3171]
[1726177306846,3.7048352,135.68,135.65,7.92]
[1726177307051,7.92,135.7,135.65,7.92]
[1726177308150,7.92,135.7,135.66,3.3168]
[1726177309052,7.92,135.7,135.67,3.3166]
[1726177310439,11.236,135.7,135.66,11.2368]
[1726177311952,7.92,135.69,135.66,3.3168]
[1726177314461,3.316,135.7,135.66,3.3168]
[1726177314753,7.92,135.69,135.66,3.3168]
[1726177315747,3.316,135.7,135.66,3.3168]
[1726177316056,7.92,135.69,135.66,3.3168]
[1726177321062,7.92,135.69,135.67,3.3166]
[1726177323752,7.92,135.69,135.66,3.3168]
[1726177325554,7.92,135.68,135.65,3.317]
[1726177325767,7.92,135.66,135.59,6.30069053]
[1726177326068,3.63204607,135.71,135.61,3.3179]
[1726177326069,7.92,135.64,135.61,3.3179]
[1726177326374,7.92,135.64,135.59,10.5481]
[1726177327066,7.92,135.63,135.59,2.6281]
[1726177328660,7.92,135.62,135.59,2.6281]
[1726177328860,7.92,135.62,135.57,7.92]
[1726177329155,7.92,135.62,135.57,3.319]
[1726177329156,7.92,135.6,135.57,3.319]
[1726177331583,7.92,135.6,135.55,9.2738]
[1726177331584,7.92,135.6,135.56,3.3192]
[1726177331779,7.92,135.6,135.55,9.2738]
[1726177332085,7.92,135.59,135.54,7.92]
[1726177332275,3.73220738,135.62,135.52,7.92]
[1726177332476,7.92,135.57,135.54,3.3197]
[1726177333385,7.92,135.57,135.53,3.32]
[1726177333779,7.92,135.56,135.53,3.32]
[1726177334086,7.92,135.55,135.51,2.7723]
[1726177335086,3.3193,135.57,135.49,1.3821]
[1726177335087,7.92,135.53,135.49,1.3821]
[1726177335285,7.92,135.53,135.5,3.3208]
[1726177336883,7.92,135.53,135.45,7.373]
[1726177337088,7.92,135.53,135.48,7.92]
[1726177337486,3.65913954,135.57,135.49,3.321]
[1726177337487,7.92,135.52,135.49,3.321]
[1726177339190,7.92,135.52,135.48,3.3213]
[1726177339884,7.92,135.52,135.49,3.321]
[1726177340788,3.3199,135.54,135.47,174.56015656]
[1726177340789,7.92,135.51,135.48,3.3212]
[1726177341293,7.92,135.51,135.47,169.96165656]
[1726177341597,7.92,135.51,135.47,174.56015656]
[1726177342895,7.92,135.51,135.48,3.3211]
[1726177343080,3.65913954,135.57,135.47,174.56015656]
[1726177343389,7.92,135.58,135.53,7.92]
[1726177343688,3.67065445,135.6,135.56,7.92]
[1726177343885,7.92,135.61,135.56,7.92]
[1726177344081,3.71013972,135.6,135.56,11.2392]
[1726177344491,11.63013972,135.6,135.56,11.2392]
[1726177344684,11.63013972,135.6,135.56,3.3192]
[1726177345390,11.63013972,135.6,135.57,3.3191]
[1726177347398,7.92,135.6,135.57,3.3191]
[1726177359897,7.92,135.6,135.58,3.3188]
[1726177367006,7.93,135.6,135.58,3.3188]
[1726177393921,7.93,135.63,135.55,7.93]
[1726177394315,7.93,135.63,135.53,11.3559]
[1726177394316,7.93,135.63,135.56,7.93]
[1726177394724,7.93,135.63,135.61,3.3179]
[1726177397131,3.7521146,135.64,135.61,3.3179]
[1726177397429,7.93,135.63,135.61,3.3179]
[1726177405236,7.93,135.63,135.58,2.63]
[1726177405840,7.93,135.63,135.61,3.318]
[1726177406742,3.63401681,135.64,135.61,3.318]
[1726177406743,7.93,135.62,135.61,3.318]
[1726177407435,3.63401681,135.64,135.63,3.3176]
[1726177407631,7.93,135.64,135.63,3.3176]
[1726177407828,11.59868269,135.64,135.63,3.3176]
[1726177410041,3.66868269,135.64,135.63,3.3176]
[1726177410242,7.93,135.64,135.63,3.3176]
[1726177410443,11.52540707,135.64,135.63,3.3176]
[1726177418152,11.52540707,135.64,135.62,3.3178]
[1726177421252,7.93,135.63,135.59,1.3824]
[1726177422953,7.93,135.63,135.61,3.3179]
[1726177425555,7.93,135.62,135.6,3.3183]
[1726177429061,7.93,135.61,135.51,10.34922848]
[1726177429256,7.93,135.57,135.52,10.5516]
[1726177430157,7.93,135.57,135.52,17.9336]
[1726177430662,7.93,135.58,135.56,3.3193]
[1726177431761,7.93,135.58,135.55,3.3195]
[1726177432362,7.93,135.57,135.55,3.3195]
[1726177433565,7.93,135.57,135.54,3.3198]
[1726177433765,6.97226247,135.59,135.54,3.3198]
[1726177433955,7.93,135.57,135.54,3.3198]
[1726177434854,7.93,135.57,135.55,3.3196]
[1726177435049,6.9542641,135.59,135.55,3.3196]
[1726177435263,7.93,135.57,135.55,3.3196]
[1726177435461,7.93,135.57,135.54,3.3197]
[1726177440373,3.3191,135.57,135.53,3.32]
[1726177440560,3.6355641,135.59,135.52,2.6216]
[1726177440759,6.6337,135.67,135.53,7.382]
[1726177440964,6.6337,135.67,135.53,8.6933]
[1726177440965,7.93,135.58,135.53,8.6933]
[1726177441369,6.98383939,135.6,135.55,3.3194]
[1726177441570,7.93,135.58,135.53,16.6233]
[1726177441769,6.6337,135.67,135.53,16.6233]
[1726177441964,7.93,135.59,135.56,3.3192]
[1726177451093,7.93,135.59,135.53,1.3113]
[1726177451782,7.93,135.59,135.56,3.3192]
[1726177454682,7.93,135.59,135.57,3.3191]
[1726177456882,7.93,135.59,135.58,3.3189]
[1726177459595,11.57598701,135.6,135.58,3.3189]
[1726177459889,7.93,135.6,135.59,3.3186]
[1726177460291,11.68627028,135.6,135.59,3.3186]
[1726177461592,7.93,135.6,135.59,3.3186]
[1726177463506,3.3175,135.64,135.6,3.3184]
[1726177463705,7.93,135.62,135.6,3.3184]
[1726177467906,3.3175,135.64,135.6,3.3184]
[1726177468106,7.93,135.62,135.6,3.3184]
[1726177468915,3.77276229,135.63,135.6,3.3184]
[1726177469116,7.93,135.62,135.6,3.3184]
[1726177472919,3.77276229,135.63,135.61,3.318]
[1726177473218,7.93,135.62,135.61,3.318]
[1726177474003,3.61015594,135.63,135.61,3.318]
[1726177474211,7.93,135.63,135.61,3.318]
[1726177474410,11.68285131,135.63,135.61,3.318]
[1726177478817,3.75285131,135.63,135.61,3.318]
[1726177479018,7.93,135.63,135.61,3.318]
[1726177479219,11.64828595,135.63,135.61,3.318]
[1726177485733,7.93,135.63,135.62,3.3179]
[1726177486136,11.62837643,135.63,135.62,3.3179]
[1726177487237,7.93,135.65,135.63,3.3174]
[1726177487731,11.59934765,135.65,135.63,3.3174]
[1726177488638,7.93,135.65,135.63,3.3174]
[1726177490833,7.93,135.65,135.64,3.3174]
[1726177494841,11.58258759,135.67,135.65,3.317]
[1726177495035,3.3157,135.71,135.63,1.4017]
[1726177495237,7.93,135.67,135.63,4.0922]
[1726177496829,7.93,135.67,135.66,3.3169]
[1726177500842,7.0022,135.71,135.66,3.3169]
[1726177501044,7.93,135.67,135.66,3.3169]
[1726177507146,7.93,135.68,135.67,3.3165]
[1726177514068,3.63509535,135.7,135.68,3.3164]
[1726177514268,7.93,135.7,135.68,3.3164]
[1726177514472,3.61482462,135.69,135.68,3.3164]
[1726177514661,7.93,135.7,135.68,3.3164]
[1726177515363,3.71305093,135.69,135.68,3.3164]
[1726177516274,7.93,135.7,135.68,3.3164]
[1726177516473,3.75100689,135.69,135.68,3.3164]
[1726177517073,7.93,135.7,135.68,3.3164]
[1726177517264,11.53765865,135.7,135.68,3.3164]
[1726177517464,7.93,135.7,135.68,3.3164]
[1726177518072,3.3152,135.73,135.69,3.3162]
[1726177518377,7.93,135.72,135.66,7.93]
[1726177518578,11.66442912,135.72,135.66,7.93]
[1726177519873,11.66442912,135.72,135.69,3.3161]
[1726177520267,7.93,135.71,135.69,3.3161]
[1726177521076,3.3151,135.74,135.69,3.3161]
[1726177521274,3.3146,135.76,135.68,7.93]
[1726177521481,3.3146,135.76,135.69,2.7124]
[1726177521482,7.93,135.74,135.69,2.7124]
[1726177521673,3.77533721,135.75,135.7,7.93]
[1726177521979,7.93,135.76,135.7,7.93]
[1726177522178,3.3138,135.79,135.73,3.315]
[1726177522376,7.93,135.75,135.73,3.315]
[1726177522879,6.96651547,135.79,135.74,3.3149]
[1726177523179,256.0845,135.89,135.71,7.93]
[1726177523372,7.93,135.77,135.71,7.93]
[1726177523770,118.78020223,135.85,135.71,7.93]
[1726177523969,7.93,135.77,135.71,7.93]
[1726177524167,7.93,135.77,135.74,3.3148]
[1726177524367,3.61844708,135.78,135.74,3.3148]
[1726177524567,7.93,135.78,135.74,3.3148]
[1726177524781,11.6682022,135.78,135.74,3.3148]
[1726177525171,3.7382022,135.78,135.74,3.3148]
[1726177525371,7.93,135.78,135.74,3.3148]
[1726177525571,11.52637488,135.78,135.74,3.3148]
[1726177526269,7.93,135.78,135.74,3.3148]
[1726177526465,11.59674034,135.78,135.74,3.3148]
[1726177526666,11.59674034,135.78,135.73,7.93]
[1726177526667,3.66674034,135.78,135.75,3.3147]
[1726177526982,7.93,135.78,135.75,3.3147]
[1726177527278,3.3133,135.81,135.75,3.3147]
[1726177527470,118.78020223,135.85,135.69,10.0944]
[1726177527471,7.93,135.8,135.76,3.3145]
[1726177527875,7.93,135.8,135.77,3.3141]
[1726177528075,122.09270223,135.85,135.77,7.93]
[1726177528386,7.93,135.82,135.78,3.3137]
[1726177528772,7.93,135.82,135.77,7.93]
[1726177528972,7.93,135.83,135.77,7.93]
[1726177529173,3.65603176,135.85,135.78,7.93]
[1726177529376,11.58603176,135.85,135.78,7.93]
[1726177529577,11.58603176,135.85,135.81,3.3132]
[1726177529775,7.93,135.85,135.81,3.3132]
[1726177530582,7.93,135.86,135.81,3.3132]
[1726177530774,3.77247059,135.93,135.8,2.7006]
[1726177531083,339.12417047,135.99,135.82,7.93]
[1726177531084,7.93,135.88,135.82,7.93]
[1726177531484,7.93,135.88,135.83,3.3125]
[1726177532384,3.66946469,135.93,135.85,3.3121]
[1726177532574,7.93,135.89,135.85,3.3121]
[1726177536392,7.93,135.89,135.86,3.312]
[1726177536585,7.93,135.89,135.83,7.93]
[1726177536782,115.12417047,135.99,135.89,3.3112]
[1726177537092,7.93,135.92,135.89,3.3112]
[1726177537287,115.12417047,135.99,135.81,12.30504464]
[1726177537288,7.93,135.93,135.9,3.3109]
[1726177537503,7.93,135.93,135.87,7.93]
[1726177537504,7.93,135.94,135.87,7.93]
[1726177537782,7.93,135.94,135.87,11.66426484]
[1726177537991,7.93,135.94,135.91,3.3107]
[1726177539386,7.93,135.94,135.9,11.241]
[1726177539583,7.93,135.94,135.88,11.9384]
[1726177540994,7.93,135.94,135.9,3.3109]
[1726177546885,11.2399,135.95,135.9,11.2409]
[1726177550205,3.3099,135.95,135.91,3.3108]
[1726177550498,11.2399,135.95,135.91,3.3108]
[1726177553898,3.3099,135.95,135.91,3.3108]
[1726177554095,7.93,135.94,135.91,3.3108]
[1726177554995,3.3099,135.95,135.91,3.3108]
[1726177555298,11.2399,135.95,135.91,3.3108]
[1726177559604,11.2399,135.95,135.92,3.3106]
[1726177561200,3.3099,135.95,135.92,3.3106]
[1726177561506,11.2399,135.95,135.92,3.3106]
[1726177561900,7.93,135.95,135.93,3.3102]
[1726177562096,7.93,135.95,135.9,7.93]
[1726177562292,7.93,135.95,135.92,3.3104]
[1726177562293,11.24,135.95,135.92,3.3104]
[1726177566708,3.3101,135.94,135.92,3.3104]
[1726177567209,3.3101,135.94,135.91,3.3107]
[1726177568295,3.3101,135.95,135.89,7.93]
[1726177568498,11.2401,135.95,135.89,7.93]
[1726177568898,118.73996898,135.99,135.93,3.3101]
[1726177569506,7.93,135.96,135.93,3.3101]
[1726177570910,3.3098,135.95,135.93,3.3101]
[1726177571700,3.3098,135.95,135.92,3.3105]
[1726177574707,11.2398,135.95,135.92,3.3105]
[1726177575118,3.3098,135.95,135.92,3.3105]
[1726177575906,11.2398,135.95,135.92,3.3105]
[1726177576100,7.93,135.95,135.88,4.0084]
[1726177576413,7.93,135.95,135.88,11.9384]
[1726177576604,3.3105,135.93,135.88,11.9384]
[1726177577206,3.3108,135.91,135.88,15.2499]
[1726177577413,7.93,135.93,135.88,11.9384]
[1726177578117,3.3107,135.92,135.89,3.3111]
[1726177578320,7.93,135.93,135.89,3.3111]
[1726177578908,11.2406,135.93,135.89,3.3111]
[1726177580119,3.3107,135.92,135.89,3.3111]
[1726177580322,3.3107,135.92,135.88,5.9139]
[1726177580518,7.93,135.92,135.88,1.304]
[1726177580916,7.93,135.92,135.86,15.312]
[1726177581110,7.93,135.92,135.85,3.73362766]
[1726177581312,11.69048565,135.92,135.86,7.93]
[1726177582021,11.69048565,135.92,135.87,3.3116]
[1726177582622,15.00118565,135.92,135.87,3.3116]
[1726177582924,15.00118565,135.92,135.88,3.3115]
[1726177584018,3.3111,135.9,135.86,14.0024]
[1726177584223,11.69048565,135.92,135.86,10.6906]
[1726177584613,11.69048565,135.92,135.86,2.7606]
[1726177584818,11.69048565,135.92,135.86,10.6906]
[1726177585510,15.00118565,135.92,135.88,3.3115]
[1726177585719,15.00118565,135.92,135.86,10.6906]
[1726177585911,15.00118565,135.92,135.87,3.3116]
[1726177587123,3.3108,135.91,135.87,3.3116]
[1726177587808,3.3111,135.9,135.86,14.0026]
[1726177588013,3.3111,135.9,135.86,6.0726]
[1726177588319,3.3111,135.9,135.86,2.7606]
[1726177588320,3.3113,135.89,135.86,2.7606]
[1726177588515,3.3113,135.89,135.85,11.2421]
[1726177589018,3.76048565,135.92,135.81,2.7751]
[1726177589019,7.93,135.88,135.81,2.7751]
[1726177589219,7.93,135.87,135.81,6.37577044]
[1726177589417,7.93,135.86,135.81,2.7751]
[1726177589620,3.3123,135.85,135.81,14.0181]
[1726177591630,3.3125,135.84,135.8,3.3133]
[1726177594940,3.3128,135.83,135.79,3.3136]
[1726177596537,7.93,135.84,135.78,7.93]
[1726177596727,7.93,135.84,135.77,2.6934]
[1726177596931,7.93,135.84,135.78,7.93]
[1726177597141,3.3129,135.83,135.79,3.3136]
[1726177598951,3.68862631,135.87,135.79,7.93]
[1726177599241,3.68862631,135.87,135.77,2.6934]
[1726177599242,7.93,135.84,135.77,2.6934]
[1726177599441,3.3128,135.83,135.79,3.3135]
[1726177600243,7.93,135.84,135.78,7.93]
[1726177600448,7.93,135.83,135.78,7.93]
[1726177600743,11.2429,135.83,135.79,3.3137]
[1726177601138,7.93,135.83,135.78,7.93]
[1726177601339,3.313,135.82,135.78,11.2438]
[1726177602652,3.313,135.82,135.78,3.3138]
[1726177603345,3.3134,135.81,135.77,10.6234]
[1726177603546,7.93,135.82,135.77,10.6234]
[1726177603934,11.2431,135.82,135.78,3.3138]
[1726177604450,3.3133,135.81,135.78,3.3138]
[1726177604650,7.93,135.82,135.78,3.3138]
[1726177605149,11.2432,135.82,135.78,3.3138]
[1726177619558,3.3135,135.81,135.77,2.6934]
[1726177620755,3.3135,135.81,135.77,6.0074]
[1726177622361,3.3135,135.81,135.78,7.93]
[1726177622558,7.93,135.82,135.78,7.93]
[1726177622854,6.6214,135.92,135.79,7.93]